Workbook

Sheet Capa (hidden)

Sheet 1_Causas_Levantadas (hidden)
C4: # Causa | D4: Causa
C5: =IF(D5="","",1) ->  | E5: =COUNT(C5:C200)-1 -> -1
C6: =IFERROR(IF(D6="","",C5+1),"Erro") -> 
C7: =IFERROR(IF(D7="","",C6+1),"Erro") -> 
C71: =IFERROR(IF(D71="","",C70+1),"Erro") -> 
C135: =IFERROR(IF(D135="","",C134+1),"Erro") -> 
C199: =IFERROR(IF(D199="","",C198+1),"Erro") -> 

Sheet 2_Notas_votacao (hidden)
B4: Instruções para priorização: | H4: Total causas | I4: =COUNTA('1_Causas_Levantadas'!$D$5:$D$200) -> 0
B5: 1. Informe o número de participantes abaixo: 2. As notas devem ser dadas e distribuídas de acordo com a tabela abaixo: | H5: Causas/part | I5: =COUNTA('1_Causas_Levantadas'!$D$5:$D$200) -> 0
I7: devem ter/partic | J7: Devem ter total | K7: têm | L7: check
H8: Notas 10 | I8: =ROUNDDOWN(I5*20%,0) -> 0 | J8: =I8*$C$9 -> 0 | K8: =COUNTIF('4_Base_votacao'!F:F,10) -> 0 | L8: =IF(K8=J8,1,0) -> 1
C9: 6 | H9: Notas 5 | I9: =ROUND(I5*30%,0) -> 0 | J9: =I9*$C$9 -> 0 | K9: =COUNTIF('4_Base_votacao'!F:F,5) -> 0 | L9: =IF(K9=J9,1,0) -> 1
H10: Notas 3 | I10: =I5-SUM(I8:I9) -> 0 | J10: =I10*$C$9 -> 0 | K10: =COUNTIF('4_Base_votacao'!F:F,3) -> 0 | L10: =IF(K10=J10,1,0) -> 1

Sheet 3_Ordem_Votacao (hidden)
B4: # Causa | C4: Causa
C5: (vazio)

Sheet 4_Base_votacao (hidden)
C4: Causa | D4: # Causa | E4: Participante | F4: Nota | G4: ='1_Causas_Levantadas'!$E$5+1 -> 0 | H4: ='2_Notas_votacao'!C9 -> 6
C5: =IFERROR(VLOOKUP(D5,'1_Causas_Levantadas'!C:D,2,0),"") ->  | D5: =IF(K5<=$H$4,(IF(G4>0,G5,$G$5)),"") -> 1 | E5: =IF(D5<>"","Participante "&K5,"") -> Participante 1 | G5: =J5 -> 1 | H5: ='2_Notas_votacao'!C9 -> 6 | I5: 1 | J5: 1 | K5: =I5 -> 1
C6: =IFERROR(VLOOKUP(D6,'1_Causas_Levantadas'!C:D,2,0),"") ->  | D6: =IF(K6<=$H$4,(IF(G5>0,G6,$G$5)),"") -> 1 | E6: =IF(D6<>"","Participante "&K6,"") -> Participante 2 | G6: =J6 -> 1 | I6: =IF(G6=$G$5,1,0) -> 1 | J6: =IF(G5<$G$4,J5+1,1) -> 1 | K6: =I6+K5 -> 2
C7: =IFERROR(VLOOKUP(D7,'1_Causas_Levantadas'!C:D,2,0),"") ->  | D7: 1 | E7: Participante 3 | G7: 1 | I7: 1 | J7: =IF(G6<$G$4,J6+1,1) -> 1 | K7: 3
C8: =IFERROR(VLOOKUP(D8,'1_Causas_Levantadas'!C:D,2,0),"") ->  | D8: 1 | E8: Participante 4 | G8: 1 | I8: 1 | J8: 1 | K8: 4
C9: =IFERROR(VLOOKUP(D9,'1_Causas_Levantadas'!C:D,2,0),"") ->  | D9: 1 | E9: Participante 5 | G9: 1 | I9: 1 | J9: 1 | K9: 5
C10: =IFERROR(VLOOKUP(D10,'1_Causas_Levantadas'!C:D,2,0),"") ->  | D10: 1 | E10: Participante 6 | G10: 1 | I10: 1 | J10: 1 | K10: 6
C11: =IFERROR(VLOOKUP(D11,'1_Causas_Levantadas'!C:D,2,0),"") -> 0 | G11: 1 | I11: 1 | J11: 1 | K11: 7
C12: =IFERROR(VLOOKUP(D12,'1_Causas_Levantadas'!C:D,2,0),"") -> 0 | G12: 1 | I12: 1 | J12: 1 | K12: 8
C13: =IFERROR(VLOOKUP(D13,'1_Causas_Levantadas'!C:D,2,0),"") -> 0 | G13: 1 | I13: 1 | J13: 1 | K13: 9
C14: =IFERROR(VLOOKUP(D14,'1_Causas_Levantadas'!C:D,2,0),"") -> 0 | G14: 1 | I14: 1 | J14: 1 | K14: 10
C15: =IFERROR(VLOOKUP(D15,'1_Causas_Levantadas'!C:D,2,0),"") -> 0 | G15: 1 | I15: 1 | J15: 1 | K15: 11
C16: =IFERROR(VLOOKUP(D16,'1_Causas_Levantadas'!C:D,2,0),"") -> 0 | G16: 1 | I16: 1 | J16: 1 | K16: 12
C17: =IFERROR(VLOOKUP(D17,'1_Causas_Levantadas'!C:D,2,0),"") -> 0 | G17: 1 | I17: 1 | J17: 1 | K17: 13
C18: =IFERROR(VLOOKUP(D18,'1_Causas_Levantadas'!C:D,2,0),"") -> 0 | G18: 1 | I18: 1 | J18: 1 | K18: 14
C19: =IFERROR(VLOOKUP(D19,'1_Causas_Levantadas'!C:D,2,0),"") -> 0 | G19: 1 | I19: 1 | J19: 1 | K19: 15
C20: =IFERROR(VLOOKUP(D20,'1_Causas_Levantadas'!C:D,2,0),"") -> 0 | G20: 1 | I20: 1 | J20: 1 | K20: 16
C21: =IFERROR(VLOOKUP(D21,'1_Causas_Levantadas'!C:D,2,0),"") -> 0 | G21: 1 | I21: 1 | J21: 1 | K21: 17
C22: =IFERROR(VLOOKUP(D22,'1_Causas_Levantadas'!C:D,2,0),"") -> 0 | G22: 1 | I22: 1 | J22: 1 | K22: 18
C23: =IFERROR(VLOOKUP(D23,'1_Causas_Levantadas'!C:D,2,0),"") -> 0 | G23: 1 | I23: 1 | J23: 1 | K23: 19
C24: =IFERROR(VLOOKUP(D24,'1_Causas_Levantadas'!C:D,2,0),"") -> 0 | G24: 1 | I24: 1 | J24: 1 | K24: 20
C25: =IFERROR(VLOOKUP(D25,'1_Causas_Levantadas'!C:D,2,0),"") -> 0 | G25: 1 | I25: 1 | J25: 1 | K25: 21
C26: =IFERROR(VLOOKUP(D26,'1_Causas_Levantadas'!C:D,2,0),"") -> 0 | G26: 1 | I26: 1 | J26: 1 | K26: 22
C27: =IFERROR(VLOOKUP(D27,'1_Causas_Levantadas'!C:D,2,0),"") -> 0 | G27: 1 | I27: 1 | J27: 1 | K27: 23
C28: =IFERROR(VLOOKUP(D28,'1_Causas_Levantadas'!C:D,2,0),"") -> 0 | G28: 1 | I28: 1 | J28: 1 | K28: 24
C29: =IFERROR(VLOOKUP(D29,'1_Causas_Levantadas'!C:D,2,0),"") -> 0 | G29: 1 | I29: 1 | J29: 1 | K29: 25
C30: =IFERROR(VLOOKUP(D30,'1_Causas_Levantadas'!C:D,2,0),"") -> 0 | G30: 1 | I30: 1 | J30: 1 | K30: 26
C31: =IFERROR(VLOOKUP(D31,'1_Causas_Levantadas'!C:D,2,0),"") -> 0 | G31: 1 | I31: 1 | J31: 1 | K31: 27
C32: =IFERROR(VLOOKUP(D32,'1_Causas_Levantadas'!C:D,2,0),"") -> 0 | G32: 1 | I32: 1 | J32: 1 | K32: 28
C33: =IFERROR(VLOOKUP(D33,'1_Causas_Levantadas'!C:D,2,0),"") -> 0 | G33: 1 | I33: 1 | J33: 1 | K33: 29
C34: =IFERROR(VLOOKUP(D34,'1_Causas_Levantadas'!C:D,2,0),"") -> 0 | G34: 1 | I34: 1 | J34: 1 | K34: 30
C35: =IFERROR(VLOOKUP(D35,'1_Causas_Levantadas'!C:D,2,0),"") -> 0 | G35: 1 | I35: 1 | J35: 1 | K35: 31
C36: =IFERROR(VLOOKUP(D36,'1_Causas_Levantadas'!C:D,2,0),"") -> 0 | G36: 1 | I36: 1 | J36: 1 | K36: 32
C37: =IFERROR(VLOOKUP(D37,'1_Causas_Levantadas'!C:D,2,0),"") -> 0 | G37: 1 | I37: 1 | J37: 1 | K37: 33
C38: =IFERROR(VLOOKUP(D38,'1_Causas_Levantadas'!C:D,2,0),"") -> 0 | G38: 1 | I38: 1 | J38: 1 | K38: 34
C39: =IFERROR(VLOOKUP(D39,'1_Causas_Levantadas'!C:D,2,0),"") -> 0 | G39: 1 | I39: 1 | J39: 1 | K39: 35
C40: =IFERROR(VLOOKUP(D40,'1_Causas_Levantadas'!C:D,2,0),"") -> 0 | G40: 1 | I40: 1 | J40: 1 | K40: 36
C41: =IFERROR(VLOOKUP(D41,'1_Causas_Levantadas'!C:D,2,0),"") -> 0 | G41: 1 | I41: 1 | J41: 1 | K41: 37
C42: =IFERROR(VLOOKUP(D42,'1_Causas_Levantadas'!C:D,2,0),"") -> 0 | G42: 1 | I42: 1 | J42: 1 | K42: 38
C43: =IFERROR(VLOOKUP(D43,'1_Causas_Levantadas'!C:D,2,0),"") -> 0 | G43: 1 | I43: 1 | J43: 1 | K43: 39
C44: =IFERROR(VLOOKUP(D44,'1_Causas_Levantadas'!C:D,2,0),"") -> 0 | G44: 1 | I44: 1 | J44: 1 | K44: 40
C45: =IFERROR(VLOOKUP(D45,'1_Causas_Levantadas'!C:D,2,0),"") -> 0 | G45: 1 | I45: 1 | J45: 1 | K45: 41
C46: =IFERROR(VLOOKUP(D46,'1_Causas_Levantadas'!C:D,2,0),"") -> 0 | G46: 1 | I46: 1 | J46: 1 | K46: 42
C47: =IFERROR(VLOOKUP(D47,'1_Causas_Levantadas'!C:D,2,0),"") -> 0 | G47: 1 | I47: 1 | J47: 1 | K47: 43
C48: =IFERROR(VLOOKUP(D48,'1_Causas_Levantadas'!C:D,2,0),"") -> 0 | G48: 1 | I48: 1 | J48: 1 | K48: 44
C49: =IFERROR(VLOOKUP(D49,'1_Causas_Levantadas'!C:D,2,0),"") -> 0 | G49: 1 | I49: 1 | J49: 1 | K49: 45
C50: =IFERROR(VLOOKUP(D50,'1_Causas_Levantadas'!C:D,2,0),"") -> 0 | G50: 1 | I50: 1 | J50: 1 | K50: 46
C51: =IFERROR(VLOOKUP(D51,'1_Causas_Levantadas'!C:D,2,0),"") -> 0 | G51: 1 | I51: 1 | J51: 1 | K51: 47
C52: =IFERROR(VLOOKUP(D52,'1_Causas_Levantadas'!C:D,2,0),"") -> 0 | G52: 1 | I52: 1 | J52: 1 | K52: 48
C53: =IFERROR(VLOOKUP(D53,'1_Causas_Levantadas'!C:D,2,0),"") -> 0 | G53: 1 | I53: 1 | J53: 1 | K53: 49
C54: =IFERROR(VLOOKUP(D54,'1_Causas_Levantadas'!C:D,2,0),"") -> 0 | G54: 1 | I54: 1 | J54: 1 | K54: 50
C55: =IFERROR(VLOOKUP(D55,'1_Causas_Levantadas'!C:D,2,0),"") -> 0 | G55: 1 | I55: 1 | J55: 1 | K55: 51
C56: =IFERROR(VLOOKUP(D56,'1_Causas_Levantadas'!C:D,2,0),"") -> 0 | G56: 1 | I56: 1 | J56: 1 | K56: 52
C57: =IFERROR(VLOOKUP(D57,'1_Causas_Levantadas'!C:D,2,0),"") -> 0 | G57: 1 | I57: 1 | J57: 1 | K57: 53
C58: =IFERROR(VLOOKUP(D58,'1_Causas_Levantadas'!C:D,2,0),"") -> 0 | G58: 1 | I58: 1 | J58: 1 | K58: 54
C59: =IFERROR(VLOOKUP(D59,'1_Causas_Levantadas'!C:D,2,0),"") -> 0 | G59: 1 | I59: 1 | J59: 1 | K59: 55
C60: =IFERROR(VLOOKUP(D60,'1_Causas_Levantadas'!C:D,2,0),"") -> 0 | G60: 1 | I60: 1 | J60: 1 | K60: 56
C61: =IFERROR(VLOOKUP(D61,'1_Causas_Levantadas'!C:D,2,0),"") -> 0 | G61: 1 | I61: 1 | J61: 1 | K61: 57
C62: =IFERROR(VLOOKUP(D62,'1_Causas_Levantadas'!C:D,2,0),"") -> 0 | G62: 1 | I62: 1 | J62: 1 | K62: 58
C63: =IFERROR(VLOOKUP(D63,'1_Causas_Levantadas'!C:D,2,0),"") -> 0 | G63: 1 | I63: 1 | J63: 1 | K63: 59
C64: =IFERROR(VLOOKUP(D64,'1_Causas_Levantadas'!C:D,2,0),"") -> 0 | G64: 1 | I64: 1 | J64: 1 | K64: 60
C65: =IFERROR(VLOOKUP(D65,'1_Causas_Levantadas'!C:D,2,0),"") -> 0 | G65: 1 | I65: 1 | J65: 1 | K65: 61
C66: =IFERROR(VLOOKUP(D66,'1_Causas_Levantadas'!C:D,2,0),"") -> 0 | G66: 1 | I66: 1 | J66: 1 | K66: 62
C67: =IFERROR(VLOOKUP(D67,'1_Causas_Levantadas'!C:D,2,0),"") -> 0 | G67: 1 | I67: 1 | J67: 1 | K67: 63
C68: =IFERROR(VLOOKUP(D68,'1_Causas_Levantadas'!C:D,2,0),"") -> 0 | G68: 1 | I68: 1 | J68: 1 | K68: 64
C69: =IFERROR(VLOOKUP(D69,'1_Causas_Levantadas'!C:D,2,0),"") -> 0 | G69: 1 | I69: 1 | J69: 1 | K69: 65
C70: =IFERROR(VLOOKUP(D70,'1_Causas_Levantadas'!C:D,2,0),"") -> 0 | D70: =IF(K70<=$H$4,(IF(G69>0,G70,$G$5)),"") ->  | E70: =IF(D70<>"","Participante "&K70,"") ->  | G70: =J70 -> 1 | I70: =IF(G70=$G$5,1,0) -> 1 | J70: 1 | K70: =I70+K69 -> 66
C71: =IFERROR(VLOOKUP(D71,'1_Causas_Levantadas'!C:D,2,0),"") -> 0 | G71: 1 | I71: 1 | J71: =IF(G70<$G$4,J70+1,1) -> 1 | K71: 67
C72: =IFERROR(VLOOKUP(D72,'1_Causas_Levantadas'!C:D,2,0),"") -> 0 | G72: 1 | I72: 1 | J72: 1 | K72: 68
C73: =IFERROR(VLOOKUP(D73,'1_Causas_Levantadas'!C:D,2,0),"") -> 0 | G73: 1 | I73: 1 | J73: 1 | K73: 69
C74: =IFERROR(VLOOKUP(D74,'1_Causas_Levantadas'!C:D,2,0),"") -> 0 | G74: 1 | I74: 1 | J74: 1 | K74: 70
C75: =IFERROR(VLOOKUP(D75,'1_Causas_Levantadas'!C:D,2,0),"") -> 0 | G75: 1 | I75: 1 | J75: 1 | K75: 71
C76: =IFERROR(VLOOKUP(D76,'1_Causas_Levantadas'!C:D,2,0),"") -> 0 | G76: 1 | I76: 1 | J76: 1 | K76: 72
C77: =IFERROR(VLOOKUP(D77,'1_Causas_Levantadas'!C:D,2,0),"") -> 0 | G77: 1 | I77: 1 | J77: 1 | K77: 73
C78: =IFERROR(VLOOKUP(D78,'1_Causas_Levantadas'!C:D,2,0),"") -> 0 | G78: 1 | I78: 1 | J78: 1 | K78: 74
C79: =IFERROR(VLOOKUP(D79,'1_Causas_Levantadas'!C:D,2,0),"") -> 0 | G79: 1 | I79: 1 | J79: 1 | K79: 75
C80: =IFERROR(VLOOKUP(D80,'1_Causas_Levantadas'!C:D,2,0),"") -> 0 | G80: 1 | I80: 1 | J80: 1 | K80: 76
C81: =IFERROR(VLOOKUP(D81,'1_Causas_Levantadas'!C:D,2,0),"") -> 0 | G81: 1 | I81: 1 | J81: 1 | K81: 77
C82: =IFERROR(VLOOKUP(D82,'1_Causas_Levantadas'!C:D,2,0),"") -> 0 | G82: 1 | I82: 1 | J82: 1 | K82: 78
C83: =IFERROR(VLOOKUP(D83,'1_Causas_Levantadas'!C:D,2,0),"") -> 0 | G83: 1 | I83: 1 | J83: 1 | K83: 79
C84: =IFERROR(VLOOKUP(D84,'1_Causas_Levantadas'!C:D,2,0),"") -> 0 | G84: 1 | I84: 1 | J84: 1 | K84: 80
C85: =IFERROR(VLOOKUP(D85,'1_Causas_Levantadas'!C:D,2,0),"") -> 0 | G85: 1 | I85: 1 | J85: 1 | K85: 81
C86: =IFERROR(VLOOKUP(D86,'1_Causas_Levantadas'!C:D,2,0),"") -> 0 | G86: 1 | I86: 1 | J86: 1 | K86: 82
C87: =IFERROR(VLOOKUP(D87,'1_Causas_Levantadas'!C:D,2,0),"") -> 0 | G87: 1 | I87: 1 | J87: 1 | K87: 83
C88: =IFERROR(VLOOKUP(D88,'1_Causas_Levantadas'!C:D,2,0),"") -> 0 | G88: 1 | I88: 1 | J88: 1 | K88: 84
C89: =IFERROR(VLOOKUP(D89,'1_Causas_Levantadas'!C:D,2,0),"") -> 0 | G89: 1 | I89: 1 | J89: 1 | K89: 85
C90: =IFERROR(VLOOKUP(D90,'1_Causas_Levantadas'!C:D,2,0),"") -> 0 | G90: 1 | I90: 1 | J90: 1 | K90: 86
C91: =IFERROR(VLOOKUP(D91,'1_Causas_Levantadas'!C:D,2,0),"") -> 0 | G91: 1 | I91: 1 | J91: 1 | K91: 87
C92: =IFERROR(VLOOKUP(D92,'1_Causas_Levantadas'!C:D,2,0),"") -> 0 | G92: 1 | I92: 1 | J92: 1 | K92: 88
C93: =IFERROR(VLOOKUP(D93,'1_Causas_Levantadas'!C:D,2,0),"") -> 0 | G93: 1 | I93: 1 | J93: 1 | K93: 89
C94: =IFERROR(VLOOKUP(D94,'1_Causas_Levantadas'!C:D,2,0),"") -> 0 | G94: 1 | I94: 1 | J94: 1 | K94: 90
C95: =IFERROR(VLOOKUP(D95,'1_Causas_Levantadas'!C:D,2,0),"") -> 0 | G95: 1 | I95: 1 | J95: 1 | K95: 91
C96: =IFERROR(VLOOKUP(D96,'1_Causas_Levantadas'!C:D,2,0),"") -> 0 | G96: 1 | I96: 1 | J96: 1 | K96: 92
C97: =IFERROR(VLOOKUP(D97,'1_Causas_Levantadas'!C:D,2,0),"") -> 0 | G97: 1 | I97: 1 | J97: 1 | K97: 93
C98: =IFERROR(VLOOKUP(D98,'1_Causas_Levantadas'!C:D,2,0),"") -> 0 | G98: 1 | I98: 1 | J98: 1 | K98: 94
C99: =IFERROR(VLOOKUP(D99,'1_Causas_Levantadas'!C:D,2,0),"") -> 0 | G99: 1 | I99: 1 | J99: 1 | K99: 95
C100: =IFERROR(VLOOKUP(D100,'1_Causas_Levantadas'!C:D,2,0),"") -> 0 | G100: 1 | I100: 1 | J100: 1 | K100: 96
C101: =IFERROR(VLOOKUP(D101,'1_Causas_Levantadas'!C:D,2,0),"") -> 0 | G101: 1 | I101: 1 | J101: 1 | K101: 97
C102: =IFERROR(VLOOKUP(D102,'1_Causas_Levantadas'!C:D,2,0),"") -> 0 | G102: 1 | I102: 1 | J102: 1 | K102: 98
C103: =IFERROR(VLOOKUP(D103,'1_Causas_Levantadas'!C:D,2,0),"") -> 0 | G103: 1 | I103: 1 | J103: 1 | K103: 99
C104: =IFERROR(VLOOKUP(D104,'1_Causas_Levantadas'!C:D,2,0),"") -> 0 | G104: 1 | I104: 1 | J104: 1 | K104: 100
C105: =IFERROR(VLOOKUP(D105,'1_Causas_Levantadas'!C:D,2,0),"") -> 0 | G105: 1 | I105: 1 | J105: 1 | K105: 101
C106: =IFERROR(VLOOKUP(D106,'1_Causas_Levantadas'!C:D,2,0),"") -> 0 | G106: 1 | I106: 1 | J106: 1 | K106: 102
C107: =IFERROR(VLOOKUP(D107,'1_Causas_Levantadas'!C:D,2,0),"") -> 0 | G107: 1 | I107: 1 | J107: 1 | K107: 103
C108: =IFERROR(VLOOKUP(D108,'1_Causas_Levantadas'!C:D,2,0),"") -> 0 | G108: 1 | I108: 1 | J108: 1 | K108: 104
C109: =IFERROR(VLOOKUP(D109,'1_Causas_Levantadas'!C:D,2,0),"") -> 0 | G109: 1 | I109: 1 | J109: 1 | K109: 105
C110: =IFERROR(VLOOKUP(D110,'1_Causas_Levantadas'!C:D,2,0),"") -> 0 | G110: 1 | I110: 1 | J110: 1 | K110: 106
C111: =IFERROR(VLOOKUP(D111,'1_Causas_Levantadas'!C:D,2,0),"") -> 0 | G111: 1 | I111: 1 | J111: 1 | K111: 107
C112: =IFERROR(VLOOKUP(D112,'1_Causas_Levantadas'!C:D,2,0),"") -> 0 | G112: 1 | I112: 1 | J112: 1 | K112: 108
C113: =IFERROR(VLOOKUP(D113,'1_Causas_Levantadas'!C:D,2,0),"") -> 0 | G113: 1 | I113: 1 | J113: 1 | K113: 109
C114: =IFERROR(VLOOKUP(D114,'1_Causas_Levantadas'!C:D,2,0),"") -> 0 | G114: 1 | I114: 1 | J114: 1 | K114: 110
C115: =IFERROR(VLOOKUP(D115,'1_Causas_Levantadas'!C:D,2,0),"") -> 0 | G115: 1 | I115: 1 | J115: 1 | K115: 111
C116: =IFERROR(VLOOKUP(D116,'1_Causas_Levantadas'!C:D,2,0),"") -> 0 | G116: 1 | I116: 1 | J116: 1 | K116: 112
C117: =IFERROR(VLOOKUP(D117,'1_Causas_Levantadas'!C:D,2,0),"") -> 0 | G117: 1 | I117: 1 | J117: 1 | K117: 113
C118: =IFERROR(VLOOKUP(D118,'1_Causas_Levantadas'!C:D,2,0),"") -> 0 | G118: 1 | I118: 1 | J118: 1 | K118: 114
C119: =IFERROR(VLOOKUP(D119,'1_Causas_Levantadas'!C:D,2,0),"") -> 0 | G119: 1 | I119: 1 | J119: 1 | K119: 115
C120: =IFERROR(VLOOKUP(D120,'1_Causas_Levantadas'!C:D,2,0),"") -> 0 | G120: 1 | I120: 1 | J120: 1 | K120: 116
C121: =IFERROR(VLOOKUP(D121,'1_Causas_Levantadas'!C:D,2,0),"") -> 0 | G121: 1 | I121: 1 | J121: 1 | K121: 117
C122: =IFERROR(VLOOKUP(D122,'1_Causas_Levantadas'!C:D,2,0),"") -> 0 | G122: 1 | I122: 1 | J122: 1 | K122: 118
C123: =IFERROR(VLOOKUP(D123,'1_Causas_Levantadas'!C:D,2,0),"") -> 0 | G123: 1 | I123: 1 | J123: 1 | K123: 119
C124: =IFERROR(VLOOKUP(D124,'1_Causas_Levantadas'!C:D,2,0),"") -> 0 | G124: 1 | I124: 1 | J124: 1 | K124: 120
C125: =IFERROR(VLOOKUP(D125,'1_Causas_Levantadas'!C:D,2,0),"") -> 0 | G125: 1 | I125: 1 | J125: 1 | K125: 121
C126: =IFERROR(VLOOKUP(D126,'1_Causas_Levantadas'!C:D,2,0),"") -> 0 | G126: 1 | I126: 1 | J126: 1 | K126: 122
C127: =IFERROR(VLOOKUP(D127,'1_Causas_Levantadas'!C:D,2,0),"") -> 0 | G127: 1 | I127: 1 | J127: 1 | K127: 123
C128: =IFERROR(VLOOKUP(D128,'1_Causas_Levantadas'!C:D,2,0),"") -> 0 | G128: 1 | I128: 1 | J128: 1 | K128: 124
C129: =IFERROR(VLOOKUP(D129,'1_Causas_Levantadas'!C:D,2,0),"") -> 0 | G129: 1 | I129: 1 | J129: 1 | K129: 125
C130: =IFERROR(VLOOKUP(D130,'1_Causas_Levantadas'!C:D,2,0),"") -> 0 | G130: 1 | I130: 1 | J130: 1 | K130: 126
C131: =IFERROR(VLOOKUP(D131,'1_Causas_Levantadas'!C:D,2,0),"") -> 0 | G131: 1 | I131: 1 | J131: 1 | K131: 127
C132: =IFERROR(VLOOKUP(D132,'1_Causas_Levantadas'!C:D,2,0),"") -> 0 | G132: 1 | I132: 1 | J132: 1 | K132: 128
C133: =IFERROR(VLOOKUP(D133,'1_Causas_Levantadas'!C:D,2,0),"") -> 0 | G133: 1 | I133: 1 | J133: 1 | K133: 129
C134: =IFERROR(VLOOKUP(D134,'1_Causas_Levantadas'!C:D,2,0),"") -> 0 | D134: =IF(K134<=$H$4,(IF(G133>0,G134,$G$5)),"") ->  | E134: =IF(D134<>"","Participante "&K134,"") ->  | G134: =J134 -> 1 | I134: =IF(G134=$G$5,1,0) -> 1 | J134: 1 | K134: =I134+K133 -> 130
C135: =IFERROR(VLOOKUP(D135,'1_Causas_Levantadas'!C:D,2,0),"") -> 0 | G135: 1 | I135: 1 | J135: =IF(G134<$G$4,J134+1,1) -> 1 | K135: 131
C136: =IFERROR(VLOOKUP(D136,'1_Causas_Levantadas'!C:D,2,0),"") -> 0 | G136: 1 | I136: 1 | J136: 1 | K136: 132
C137: =IFERROR(VLOOKUP(D137,'1_Causas_Levantadas'!C:D,2,0),"") -> 0 | G137: 1 | I137: 1 | J137: 1 | K137: 133
C138: =IFERROR(VLOOKUP(D138,'1_Causas_Levantadas'!C:D,2,0),"") -> 0 | G138: 1 | I138: 1 | J138: 1 | K138: 134
C139: =IFERROR(VLOOKUP(D139,'1_Causas_Levantadas'!C:D,2,0),"") -> 0 | G139: 1 | I139: 1 | J139: 1 | K139: 135
C140: =IFERROR(VLOOKUP(D140,'1_Causas_Levantadas'!C:D,2,0),"") -> 0 | G140: 1 | I140: 1 | J140: 1 | K140: 136
C141: =IFERROR(VLOOKUP(D141,'1_Causas_Levantadas'!C:D,2,0),"") -> 0 | G141: 1 | I141: 1 | J141: 1 | K141: 137
C142: =IFERROR(VLOOKUP(D142,'1_Causas_Levantadas'!C:D,2,0),"") -> 0 | G142: 1 | I142: 1 | J142: 1 | K142: 138
C143: =IFERROR(VLOOKUP(D143,'1_Causas_Levantadas'!C:D,2,0),"") -> 0 | G143: 1 | I143: 1 | J143: 1 | K143: 139
C144: =IFERROR(VLOOKUP(D144,'1_Causas_Levantadas'!C:D,2,0),"") -> 0 | G144: 1 | I144: 1 | J144: 1 | K144: 140
C145: =IFERROR(VLOOKUP(D145,'1_Causas_Levantadas'!C:D,2,0),"") -> 0 | G145: 1 | I145: 1 | J145: 1 | K145: 141
C146: =IFERROR(VLOOKUP(D146,'1_Causas_Levantadas'!C:D,2,0),"") -> 0 | G146: 1 | I146: 1 | J146: 1 | K146: 142
C147: =IFERROR(VLOOKUP(D147,'1_Causas_Levantadas'!C:D,2,0),"") -> 0 | G147: 1 | I147: 1 | J147: 1 | K147: 143
C148: =IFERROR(VLOOKUP(D148,'1_Causas_Levantadas'!C:D,2,0),"") -> 0 | G148: 1 | I148: 1 | J148: 1 | K148: 144
C149: =IFERROR(VLOOKUP(D149,'1_Causas_Levantadas'!C:D,2,0),"") -> 0 | G149: 1 | I149: 1 | J149: 1 | K149: 145
C150: =IFERROR(VLOOKUP(D150,'1_Causas_Levantadas'!C:D,2,0),"") -> 0 | G150: 1 | I150: 1 | J150: 1 | K150: 146
C151: =IFERROR(VLOOKUP(D151,'1_Causas_Levantadas'!C:D,2,0),"") -> 0 | G151: 1 | I151: 1 | J151: 1 | K151: 147
C152: =IFERROR(VLOOKUP(D152,'1_Causas_Levantadas'!C:D,2,0),"") -> 0 | G152: 1 | I152: 1 | J152: 1 | K152: 148
C153: =IFERROR(VLOOKUP(D153,'1_Causas_Levantadas'!C:D,2,0),"") -> 0 | G153: 1 | I153: 1 | J153: 1 | K153: 149
C154: =IFERROR(VLOOKUP(D154,'1_Causas_Levantadas'!C:D,2,0),"") -> 0 | G154: 1 | I154: 1 | J154: 1 | K154: 150
C155: =IFERROR(VLOOKUP(D155,'1_Causas_Levantadas'!C:D,2,0),"") -> 0 | G155: 1 | I155: 1 | J155: 1 | K155: 151
C156: =IFERROR(VLOOKUP(D156,'1_Causas_Levantadas'!C:D,2,0),"") -> 0 | G156: 1 | I156: 1 | J156: 1 | K156: 152
C157: =IFERROR(VLOOKUP(D157,'1_Causas_Levantadas'!C:D,2,0),"") -> 0 | G157: 1 | I157: 1 | J157: 1 | K157: 153
C158: =IFERROR(VLOOKUP(D158,'1_Causas_Levantadas'!C:D,2,0),"") -> 0 | G158: 1 | I158: 1 | J158: 1 | K158: 154
C159: =IFERROR(VLOOKUP(D159,'1_Causas_Levantadas'!C:D,2,0),"") -> 0 | G159: 1 | I159: 1 | J159: 1 | K159: 155
C160: =IFERROR(VLOOKUP(D160,'1_Causas_Levantadas'!C:D,2,0),"") -> 0 | G160: 1 | I160: 1 | J160: 1 | K160: 156
C161: =IFERROR(VLOOKUP(D161,'1_Causas_Levantadas'!C:D,2,0),"") -> 0 | G161: 1 | I161: 1 | J161: 1 | K161: 157
C162: =IFERROR(VLOOKUP(D162,'1_Causas_Levantadas'!C:D,2,0),"") -> 0 | G162: 1 | I162: 1 | J162: 1 | K162: 158
C163: =IFERROR(VLOOKUP(D163,'1_Causas_Levantadas'!C:D,2,0),"") -> 0 | G163: 1 | I163: 1 | J163: 1 | K163: 159
C164: =IFERROR(VLOOKUP(D164,'1_Causas_Levantadas'!C:D,2,0),"") -> 0 | G164: 1 | I164: 1 | J164: 1 | K164: 160
C165: =IFERROR(VLOOKUP(D165,'1_Causas_Levantadas'!C:D,2,0),"") -> 0 | G165: 1 | I165: 1 | J165: 1 | K165: 161
C166: =IFERROR(VLOOKUP(D166,'1_Causas_Levantadas'!C:D,2,0),"") -> 0 | G166: 1 | I166: 1 | J166: 1 | K166: 162
C167: =IFERROR(VLOOKUP(D167,'1_Causas_Levantadas'!C:D,2,0),"") -> 0 | G167: 1 | I167: 1 | J167: 1 | K167: 163
C168: =IFERROR(VLOOKUP(D168,'1_Causas_Levantadas'!C:D,2,0),"") -> 0 | G168: 1 | I168: 1 | J168: 1 | K168: 164
C169: =IFERROR(VLOOKUP(D169,'1_Causas_Levantadas'!C:D,2,0),"") -> 0 | G169: 1 | I169: 1 | J169: 1 | K169: 165
C170: =IFERROR(VLOOKUP(D170,'1_Causas_Levantadas'!C:D,2,0),"") -> 0 | G170: 1 | I170: 1 | J170: 1 | K170: 166
C171: =IFERROR(VLOOKUP(D171,'1_Causas_Levantadas'!C:D,2,0),"") -> 0 | G171: 1 | I171: 1 | J171: 1 | K171: 167
C172: =IFERROR(VLOOKUP(D172,'1_Causas_Levantadas'!C:D,2,0),"") -> 0 | G172: 1 | I172: 1 | J172: 1 | K172: 168
C173: =IFERROR(VLOOKUP(D173,'1_Causas_Levantadas'!C:D,2,0),"") -> 0 | G173: 1 | I173: 1 | J173: 1 | K173: 169
C174: =IFERROR(VLOOKUP(D174,'1_Causas_Levantadas'!C:D,2,0),"") -> 0 | G174: 1 | I174: 1 | J174: 1 | K174: 170
C175: =IFERROR(VLOOKUP(D175,'1_Causas_Levantadas'!C:D,2,0),"") -> 0 | G175: 1 | I175: 1 | J175: 1 | K175: 171
C176: =IFERROR(VLOOKUP(D176,'1_Causas_Levantadas'!C:D,2,0),"") -> 0 | G176: 1 | I176: 1 | J176: 1 | K176: 172
C177: =IFERROR(VLOOKUP(D177,'1_Causas_Levantadas'!C:D,2,0),"") -> 0 | G177: 1 | I177: 1 | J177: 1 | K177: 173
C178: =IFERROR(VLOOKUP(D178,'1_Causas_Levantadas'!C:D,2,0),"") -> 0 | G178: 1 | I178: 1 | J178: 1 | K178: 174
C179: =IFERROR(VLOOKUP(D179,'1_Causas_Levantadas'!C:D,2,0),"") -> 0 | G179: 1 | I179: 1 | J179: 1 | K179: 175
C180: =IFERROR(VLOOKUP(D180,'1_Causas_Levantadas'!C:D,2,0),"") -> 0 | G180: 1 | I180: 1 | J180: 1 | K180: 176
C181: =IFERROR(VLOOKUP(D181,'1_Causas_Levantadas'!C:D,2,0),"") -> 0 | G181: 1 | I181: 1 | J181: 1 | K181: 177
C182: =IFERROR(VLOOKUP(D182,'1_Causas_Levantadas'!C:D,2,0),"") -> 0 | G182: 1 | I182: 1 | J182: 1 | K182: 178
C183: =IFERROR(VLOOKUP(D183,'1_Causas_Levantadas'!C:D,2,0),"") -> 0 | G183: 1 | I183: 1 | J183: 1 | K183: 179
C184: =IFERROR(VLOOKUP(D184,'1_Causas_Levantadas'!C:D,2,0),"") -> 0 | G184: 1 | I184: 1 | J184: 1 | K184: 180
C185: =IFERROR(VLOOKUP(D185,'1_Causas_Levantadas'!C:D,2,0),"") -> 0 | G185: 1 | I185: 1 | J185: 1 | K185: 181
C186: =IFERROR(VLOOKUP(D186,'1_Causas_Levantadas'!C:D,2,0),"") -> 0 | G186: 1 | I186: 1 | J186: 1 | K186: 182
C187: =IFERROR(VLOOKUP(D187,'1_Causas_Levantadas'!C:D,2,0),"") -> 0 | G187: 1 | I187: 1 | J187: 1 | K187: 183
C188: =IFERROR(VLOOKUP(D188,'1_Causas_Levantadas'!C:D,2,0),"") -> 0 | G188: 1 | I188: 1 | J188: 1 | K188: 184
C189: =IFERROR(VLOOKUP(D189,'1_Causas_Levantadas'!C:D,2,0),"") -> 0 | G189: 1 | I189: 1 | J189: 1 | K189: 185
C190: =IFERROR(VLOOKUP(D190,'1_Causas_Levantadas'!C:D,2,0),"") -> 0 | G190: 1 | I190: 1 | J190: 1 | K190: 186
C191: =IFERROR(VLOOKUP(D191,'1_Causas_Levantadas'!C:D,2,0),"") -> 0 | G191: 1 | I191: 1 | J191: 1 | K191: 187
C192: =IFERROR(VLOOKUP(D192,'1_Causas_Levantadas'!C:D,2,0),"") -> 0 | G192: 1 | I192: 1 | J192: 1 | K192: 188
C193: =IFERROR(VLOOKUP(D193,'1_Causas_Levantadas'!C:D,2,0),"") -> 0 | G193: 1 | I193: 1 | J193: 1 | K193: 189
C194: =IFERROR(VLOOKUP(D194,'1_Causas_Levantadas'!C:D,2,0),"") -> 0 | G194: 1 | I194: 1 | J194: 1 | K194: 190
C195: =IFERROR(VLOOKUP(D195,'1_Causas_Levantadas'!C:D,2,0),"") -> 0 | G195: 1 | I195: 1 | J195: 1 | K195: 191
C196: =IFERROR(VLOOKUP(D196,'1_Causas_Levantadas'!C:D,2,0),"") -> 0 | G196: 1 | I196: 1 | J196: 1 | K196: 192
C197: =IFERROR(VLOOKUP(D197,'1_Causas_Levantadas'!C:D,2,0),"") -> 0 | G197: 1 | I197: 1 | J197: 1 | K197: 193
C198: =IFERROR(VLOOKUP(D198,'1_Causas_Levantadas'!C:D,2,0),"") -> 0 | D198: =IF(K198<=$H$4,(IF(G197>0,G198,$G$5)),"") ->  | E198: =IF(D198<>"","Participante "&K198,"") ->  | G198: =J198 -> 1 | I198: =IF(G198=$G$5,1,0) -> 1 | J198: 1 | K198: =I198+K197 -> 194
C199: =IFERROR(VLOOKUP(D199,'1_Causas_Levantadas'!C:D,2,0),"") -> 0 | G199: 1 | I199: 1 | J199: =IF(G198<$G$4,J198+1,1) -> 1 | K199: 195
C200: =IFERROR(VLOOKUP(D200,'1_Causas_Levantadas'!C:D,2,0),"") -> 0 | G200: 1 | I200: 1 | J200: 1 | K200: 196
C201: =IFERROR(VLOOKUP(D201,'1_Causas_Levantadas'!C:D,2,0),"") -> 0 | G201: 1 | I201: 1 | J201: 1 | K201: 197
C202: =IFERROR(VLOOKUP(D202,'1_Causas_Levantadas'!C:D,2,0),"") -> 0 | G202: 1 | I202: 1 | J202: 1 | K202: 198
C203: =IFERROR(VLOOKUP(D203,'1_Causas_Levantadas'!C:D,2,0),"") -> 0 | G203: 1 | I203: 1 | J203: 1 | K203: 199
... 4797 more rows

Sheet 5_Verificar_Votos (hidden)
B4: Verifique os votos: | H4: Total causas | I4: =COUNTA('1_Causas_Levantadas'!$D$5:$D$200) -> 0
B5: 1. Verifique se a quantidade de votos está correta e compare as notas previstas com as reais. Caso os faróis estiverem verdes, siga para o próximo passo ("Causas Priorizadas"). Mas se os faróis estiverem vermelhos, clique em "Acertar votos". | H5: Causas/part | I5: =COUNTA('1_Causas_Levantadas'!$D$5:$D$200) -> 0 | P5: Soma | Q5: =I8*10+I9*5+I10*3 -> 0
I7: devem ter/partic | J7: Devem ter total | K7: têm | L7: check | P7: Participante 1 | Q7: =SUMIF('4_Base_votacao'!E5:E5000,'5_Verificar_Votos'!P7,'4_Base_votacao'!F5:F5000) -> 0 | R7: =IF(Q7=$Q$5,1,0) -> 1
E8: =L8 -> 1 | H8: Notas 10 | I8: =ROUNDDOWN(I5*20%,0) -> 0 | J8: =I8*'2_Notas_votacao'!C9 -> 0 | K8: =COUNTIF('4_Base_votacao'!F:F,10) -> 0 | L8: =IF(K8=J8,1,0) -> 1 | P8: Participante 2 | Q8: =SUMIF('4_Base_votacao'!E6:E5001,'5_Verificar_Votos'!P8,'4_Base_votacao'!F6:F5001) -> 0 | R8: =IF(Q8=$Q$5,1,0) -> 1
E9: =L9 -> 1 | H9: Notas 5 | I9: =ROUND(I5*30%,0) -> 0 | J9: =I9*'2_Notas_votacao'!C9 -> 0 | K9: =COUNTIF('4_Base_votacao'!F:F,5) -> 0 | L9: =IF(K9=J9,1,0) -> 1 | P9: Participante 3 | Q9: =SUMIF('4_Base_votacao'!E7:E5002,'5_Verificar_Votos'!P9,'4_Base_votacao'!F7:F5002) -> 0 | R9: 1
E10: =L10 -> 1 | H10: Notas 3 | I10: =I5-SUM(I8:I9) -> 0 | J10: =I10*'2_Notas_votacao'!C9 -> 0 | K10: =COUNTIF('4_Base_votacao'!F:F,3) -> 0 | L10: =IF(K10=J10,1,0) -> 1 | P10: Participante 4 | Q10: =SUMIF('4_Base_votacao'!E8:E5003,'5_Verificar_Votos'!P10,'4_Base_votacao'!F8:F5003) -> 0 | R10: 1
P11: Participante 5 | Q11: =SUMIF('4_Base_votacao'!E9:E5004,'5_Verificar_Votos'!P11,'4_Base_votacao'!F9:F5004) -> 0 | R11: 1
P12: Participante 6 | Q12: =SUMIF('4_Base_votacao'!E10:E5005,'5_Verificar_Votos'!P12,'4_Base_votacao'!F10:F5005) -> 0 | R12: 1
B13: 2. Verifique qual participante está com o número de votos incorreto. | P13: Participante 7 | Q13: =SUMIF('4_Base_votacao'!E11:E5006,'5_Verificar_Votos'!P13,'4_Base_votacao'!F11:F5006) -> 0 | R13: 1
P14: Participante 8 | Q14: =SUMIF('4_Base_votacao'!E12:E5007,'5_Verificar_Votos'!P14,'4_Base_votacao'!F12:F5007) -> 0 | R14: 1
P15: Participante 9 | Q15: =SUMIF('4_Base_votacao'!E13:E5008,'5_Verificar_Votos'!P15,'4_Base_votacao'!F13:F5008) -> 0 | R15: 1
C16: =IF(Q7<>0,P7,"") ->  | D16: =IF(Q7<>0,R7,"") ->  | H16: =IF(I16="","",IF(I16=$Q$5,1,0)) ->  | I16: =IFERROR(VLOOKUP(C16,#REF!,2,0),"") ->  | P16: Participante 10 | Q16: =SUMIF('4_Base_votacao'!E14:E5009,'5_Verificar_Votos'!P16,'4_Base_votacao'!F14:F5009) -> 0 | R16: 1
C17: =IF(Q8<>0,P8,"") ->  | D17: =IF(Q8<>0,R8,"") ->  | I17: =IFERROR(VLOOKUP(C17,#REF!,2,0),"") ->  | P17: Participante 11 | Q17: =SUMIF('4_Base_votacao'!E15:E5010,'5_Verificar_Votos'!P17,'4_Base_votacao'!F15:F5010) -> 0 | R17: 1
I18: =IFERROR(VLOOKUP(C18,#REF!,2,0),"") ->  | P18: Participante 12 | Q18: =SUMIF('4_Base_votacao'!E16:E5011,'5_Verificar_Votos'!P18,'4_Base_votacao'!F16:F5011) -> 0 | R18: 1
I19: =IFERROR(VLOOKUP(C19,#REF!,2,0),"") ->  | P19: Participante 13 | Q19: =SUMIF('4_Base_votacao'!E17:E5012,'5_Verificar_Votos'!P19,'4_Base_votacao'!F17:F5012) -> 0 | R19: 1
I20: =IFERROR(VLOOKUP(C20,#REF!,2,0),"") ->  | P20: Participante 14 | Q20: =SUMIF('4_Base_votacao'!E18:E5013,'5_Verificar_Votos'!P20,'4_Base_votacao'!F18:F5013) -> 0 | R20: 1
I21: =IFERROR(VLOOKUP(C21,#REF!,2,0),"") ->  | P21: Participante 15 | Q21: =SUMIF('4_Base_votacao'!E19:E5014,'5_Verificar_Votos'!P21,'4_Base_votacao'!F19:F5014) -> 0 | R21: 1
I22: =IFERROR(VLOOKUP(C22,#REF!,2,0),"") -> 
I23: =IFERROR(VLOOKUP(C23,#REF!,2,0),"") -> 
I24: =IFERROR(VLOOKUP(C24,#REF!,2,0),"") -> 
I25: =IFERROR(VLOOKUP(C25,#REF!,2,0),"") -> 
I26: =IFERROR(VLOOKUP(C26,#REF!,2,0),"") -> 
I27: =IFERROR(VLOOKUP(C27,#REF!,2,0),"") -> 
I28: =IFERROR(VLOOKUP(C28,#REF!,2,0),"") -> 
I29: =IFERROR(VLOOKUP(C29,#REF!,2,0),"") -> 
I30: =IFERROR(VLOOKUP(C30,#REF!,2,0),"") -> 
D31: =H31 ->  | I31: =IFERROR(VLOOKUP(C31,#REF!,2,0),"") -> 
I32: =IFERROR(VLOOKUP(C32,#REF!,2,0),"") -> 
I33: =IFERROR(VLOOKUP(C33,#REF!,2,0),"") -> 
I34: =IFERROR(VLOOKUP(C34,#REF!,2,0),"") -> 
I35: =IFERROR(VLOOKUP(C35,#REF!,2,0),"") -> 
I36: =IFERROR(VLOOKUP(C36,#REF!,2,0),"") -> 
I37: =IFERROR(VLOOKUP(C37,#REF!,2,0),"") -> 
I38: =IFERROR(VLOOKUP(C38,#REF!,2,0),"") -> 
I39: =IFERROR(VLOOKUP(C39,#REF!,2,0),"") -> 
I40: =IFERROR(VLOOKUP(C40,#REF!,2,0),"") -> 
I41: =IFERROR(VLOOKUP(C41,#REF!,2,0),"") -> 
I42: =IFERROR(VLOOKUP(C42,#REF!,2,0),"") -> 
I43: =IFERROR(VLOOKUP(C43,#REF!,2,0),"") -> 
I44: =IFERROR(VLOOKUP(C44,#REF!,2,0),"") -> 
I45: =IFERROR(VLOOKUP(C45,#REF!,2,0),"") -> 
I46: =IFERROR(VLOOKUP(C46,#REF!,2,0),"") -> 
I47: =IFERROR(VLOOKUP(C47,#REF!,2,0),"") -> 
H48: =IF(I48="","",IF(I48=$Q$5,1,0)) ->  | I48: =IFERROR(VLOOKUP(C48,#REF!,2,0),"") -> 
I49: =IFERROR(VLOOKUP(C49,#REF!,2,0),"") -> 
I50: =IFERROR(VLOOKUP(C50,#REF!,2,0),"") -> 
I51: =IFERROR(VLOOKUP(C51,#REF!,2,0),"") -> 
I52: =IFERROR(VLOOKUP(C52,#REF!,2,0),"") -> 
I53: =IFERROR(VLOOKUP(C53,#REF!,2,0),"") -> 
I54: =IFERROR(VLOOKUP(C54,#REF!,2,0),"") -> 
I55: =IFERROR(VLOOKUP(C55,#REF!,2,0),"") -> 
I56: =IFERROR(VLOOKUP(C56,#REF!,2,0),"") -> 
I57: =IFERROR(VLOOKUP(C57,#REF!,2,0),"") -> 
I58: =IFERROR(VLOOKUP(C58,#REF!,2,0),"") -> 
I59: =IFERROR(VLOOKUP(C59,#REF!,2,0),"") -> 
I60: =IFERROR(VLOOKUP(C60,#REF!,2,0),"") -> 
I61: =IFERROR(VLOOKUP(C61,#REF!,2,0),"") -> 
I62: =IFERROR(VLOOKUP(C62,#REF!,2,0),"") -> 
I63: =IFERROR(VLOOKUP(C63,#REF!,2,0),"") -> 
I64: =IFERROR(VLOOKUP(C64,#REF!,2,0),"") -> 
I65: =IFERROR(VLOOKUP(C65,#REF!,2,0),"") -> 
I66: =IFERROR(VLOOKUP(C66,#REF!,2,0),"") -> 
I67: =IFERROR(VLOOKUP(C67,#REF!,2,0),"") -> 
I68: =IFERROR(VLOOKUP(C68,#REF!,2,0),"") -> 
I69: =IFERROR(VLOOKUP(C69,#REF!,2,0),"") -> 
H70: =IF(#REF!="","",IF(#REF!=$Q$5,1,0)) ->  | I70: =IFERROR(VLOOKUP(C70,#REF!,2,0),"") -> 
H71: =IF(#REF!="","",IF(#REF!=$Q$5,1,0)) ->  | I71: =IFERROR(VLOOKUP(C71,#REF!,2,0),"") -> 
H72: =IF(#REF!="","",IF(#REF!=$Q$5,1,0)) ->  | I72: =IFERROR(VLOOKUP(C72,#REF!,2,0),"") -> 
I73: =IFERROR(VLOOKUP(C73,#REF!,2,0),"") -> 
I74: =IFERROR(VLOOKUP(C74,#REF!,2,0),"") -> 
I75: =IFERROR(VLOOKUP(C75,#REF!,2,0),"") -> 
I76: =IFERROR(VLOOKUP(C76,#REF!,2,0),"") -> 
I77: =IFERROR(VLOOKUP(C77,#REF!,2,0),"") -> 
I78: =IFERROR(VLOOKUP(C78,#REF!,2,0),"") -> 
I79: =IFERROR(VLOOKUP(C79,#REF!,2,0),"") -> 
I80: =IFERROR(VLOOKUP(C80,#REF!,2,0),"") -> 
I81: =IFERROR(VLOOKUP(C81,#REF!,2,0),"") -> 
I82: =IFERROR(VLOOKUP(C82,#REF!,2,0),"") -> 
I83: =IFERROR(VLOOKUP(C83,#REF!,2,0),"") -> 
I84: =IFERROR(VLOOKUP(C84,#REF!,2,0),"") -> 
I85: =IFERROR(VLOOKUP(C85,#REF!,2,0),"") -> 
I86: =IFERROR(VLOOKUP(C86,#REF!,2,0),"") -> 
I87: =IFERROR(VLOOKUP(C87,#REF!,2,0),"") -> 

Sheet 6_Causas_Priorizadas (hidden)
C3: Nota-Corte (Média): | D3: ='2_Notas_votacao'!$C$9*5 -> 30
B4: Causa | C4: Soma de Nota | D4: Priorizado
C5: 0 | D5: =IF(OR(B5="",B5="Total Geral"),"",IF(C5>=$D$3,"Sim","Não")) -> 
B6: Total geral | C6: 0
D69: =IF(OR(B69="",B69="Total Geral"),"",IF(C69>=$D$3,"Sim","Não")) -> 

Sheet Habilitar Macro

Sheet Ajuda
